bitfinex/quotes_SOLUSD_20250607
["timestamp","ask_amount","ask_price","bid_price","bid_amount"]
[1749301359590,6.57998376,151.98,151.92,46.70241096]
[1749301359794,7.7531795,151.95,151.92,46.70241096]
[1749301360488,7.7531795,151.95,151.92,46.72241096]
[1749301360701,20.16514886,151.99,151.92,54.47559046]
[1749301360877,7.7531795,151.98,151.93,7.7531795]
[1749301361072,7.7531795,151.99,151.95,7.7531795]
[1749301361297,7.7531795,151.99,151.96,40.14]
[1749301361500,7.7531795,151.98,151.96,40.14]
[1749301362194,7.7531795,151.98,151.96,46.7206214]
[1749301362505,7.7531795,151.99,151.96,46.7206214]
[1749301365285,7.7531795,151.98,151.96,46.7206214]
[1749301365578,7.7531795,151.97,151.96,40.14]
[1749301365776,26.40282836,151.97,151.92,6.58241179]
[1749301365998,7.7531795,151.96,151.93,40.12]
[1749301366400,7.7531795,151.95,151.92,6.58241179]
[1749301366579,7.7531795,151.95,151.93,40.12]
[1749301367800,18.64964886,151.99,151.9,10.34]
[1749301367801,7.7531795,151.94,151.9,10.34]
[1749301368009,7.7531795,151.94,151.92,40.12]
[1749301368416,7.7531795,151.95,151.92,40.12]
[1749301368904,7.7531795,151.95,151.92,46.70220711]
[1749301369100,7.7531795,151.97,151.92,54.45538661]
[1749301369284,26.40282836,151.97,151.92,54.45538661]
[1749301369605,18.64964886,151.94,151.9,6.58327847]
[1749301369806,7.7531795,151.94,151.91,40.12]
[1749301370103,25.22989496,151.97,151.91,40.12]
[1749301370104,7.7531795,151.93,151.91,40.12]
[1749301370281,7.7531795,151.92,151.9,40.12]
[1749301370684,7.7531795,151.93,151.89,32.58353776]
[1749301370981,7.7531795,151.92,151.9,40.12]
[1749301371384,7.7531795,151.92,151.88,16.92399617]
[1749301371613,7.7531795,151.91,151.89,40.14]
[1749301372597,7.7531795,151.91,151.88,16.92399617]
[1749301372797,7.7531795,151.91,151.89,40.12]
[1749301374391,7.7531795,151.91,151.89,40.14]
[1749301375795,18.64964886,151.94,151.87,7.7531795]
[1749301375796,18.64964886,151.94,151.87,6.58445971]
[1749301375998,7.7531795,151.91,151.87,14.33763921]
[1749301376308,7.7531795,151.91,151.88,40.14]
[1749301377114,7.7531795,151.91,151.88,46.72390374]
[1749301377815,18.64964886,151.93,151.88,46.72390374]
[1749301378120,7.7531795,151.91,151.88,46.72390374]
[1749301378717,6.58067912,151.96,151.88,54.47708324]
[1749301378913,7.7531795,151.94,151.89,7.7531795]
[1749301379349,7.7531795,151.93,151.89,7.7531795]
[1749301379618,7.7531795,151.93,151.88,54.47708324]
[1749301381920,7.7531795,151.92,151.88,46.72390374]
[1749301382118,7.7531795,151.92,151.88,54.47708324]
[1749301382419,7.7531795,151.91,151.88,40.14]
[1749301382604,7.7531795,151.9,151.86,44.0931795]
[1749301382804,7.7531795,151.9,151.87,40.14]
[1749301383925,7.7531795,151.9,151.86,32.58498734]
[1749301384125,7.7531795,151.9,151.86,72.72498734]
[1749301384417,7.7531795,151.89,151.86,72.72498734]
[1749301384726,7.7531795,151.9,151.86,72.72498734]
[1749301385218,18.64964886,151.9,151.86,72.72498734]
[1749301385525,26.40282836,151.9,151.86,72.72498734]
[1749301386022,26.40282836,151.9,151.86,32.58498734]
[1749301386225,26.40282836,151.9,151.86,72.72498734]
[1749301387402,26.40282836,151.9,151.87,40.14]
[1749301388004,18.64964886,151.9,151.87,40.14]
[1749301388208,26.40282836,151.9,151.87,40.14]
[1749301389728,18.64964886,151.9,151.87,40.14]
[1749301389904,26.40282836,151.9,151.87,40.14]
[1749301390521,26.40282836,151.9,151.87,46.72444736]
[1749301391325,18.64964886,151.92,151.87,54.47762686]
[1749301391513,26.40282836,151.92,151.87,54.47762686]
[1749301391828,7.7531795,151.92,151.88,7.7531795]
[1749301392507,7.7531795,151.93,151.88,7.7531795]
[1749301393933,7.7531795,151.93,151.89,6.58371189]
[1749301394624,7.7531795,151.92,151.89,6.58371189]
[1749301395229,7.7531795,151.93,151.89,6.58371189]
[1749301396226,18.64964886,151.95,151.89,6.58371189]
[1749301396432,26.40282836,151.95,151.9,7.7531795]
[1749301396736,26.40282836,151.95,151.91,40.14]
[1749301398116,7.7531795,151.96,151.92,14.33559129]
[1749301398435,18.64964886,151.96,151.92,14.33559129]
[1749301398637,26.40282836,151.96,151.92,6.58241179]
[1749301399035,18.64964886,151.96,151.92,6.58241179]
[1749301399234,7.7531795,151.95,151.91,46.72266501]
[1749301399420,7.7531795,151.94,151.91,46.72266501]
[1749301400519,7.7531795,151.95,151.91,54.47584451]
[1749301401418,18.64964886,151.96,151.92,7.7531795]
[1749301402538,7.7531795,151.97,151.93,6.58197854]
[1749301402846,7.7531795,151.97,151.93,14.33515804]
[1749301403231,7.7531795,151.97,151.93,6.58197854]
[1749301403547,26.40282836,151.98,151.93,14.33515804]
[1749301403718,18.64964886,151.98,151.94,7.7531795]
[1749301403922,7.7531795,151.99,151.95,7.7531795]
[1749301404246,7.7531795,151.99,151.95,47.8931795]
[1749301404416,18.64964886,151.99,151.95,54.47385875]
[1749301404612,26.40282836,151.99,151.95,40.14]
[1749301404813,7.7531795,151.98,151.95,40.14]
[1749301405120,7.7531795,151.97,151.95,40.14]
[1749301405447,26.40282836,151.96,151.95,40.14]
[1749301405655,18.64964886,151.95,151.84,1.6569]
[1749301405849,18.64964886,151.95,151.88,7.7531795]
[1749301405850,7.7531795,151.93,151.88,7.7531795]
[1749301406318,7.7531795,151.93,151.89,40.14]
[1749301406824,18.64964886,151.93,151.89,54.47681913]
[1749301407026,26.40282836,151.93,151.89,54.47681913]
[1749301408354,18.64964886,151.93,151.89,14.33681913]
[1749301408538,18.64964886,151.93,151.9,40.14]
[1749301408740,26.40282836,151.93,151.9,40.14]
[1749301413851,7.7531795,151.94,151.9,46.72326507]
[1749301417557,26.40282836,151.95,151.9,54.47644457]
[1749301417754,26.40282836,151.95,151.91,7.7531795]
[1749301418057,7.7531795,151.97,151.92,7.7531795]
[1749301419137,18.64964886,151.99,151.94,7.7531795]
[1749301419337,18.64964886,151.99,151.95,47.8931795]
[1749301419575,32.98244571,151.99,151.95,40.14]
[1749301420036,32.98235313,151.99,151.95,40.14]
[1749301420241,26.40282836,151.99,151.95,40.14]
[1749301420857,26.40282836,151.99,151.95,47.8931795]
[1749301421165,32.98222956,151.99,151.95,47.8931795]
[1749301421369,25.22905006,151.99,151.95,47.8931795]
[1749301421572,32.98222956,151.99,151.95,40.14]
[1749301422569,7.7531795,151.99,151.95,47.8931795]
[1749301423279,14.33260954,151.99,151.95,40.14]
[1749301428281,14.333149,151.98,151.95,40.14]
[1749301428974,6.5799695,151.98,151.95,40.14]
[1749301430959,17.1669892,151.99,151.95,40.14]
[1749301431658,10.58760898,151.98,151.95,40.14]
[1749301432877,17.16781825,151.98,151.95,40.14]
[1749301435566,10.58760898,151.96,151.95,40.14]
[1749301435965,18.64964886,151.95,151.85,30.72113397]
[1749301436169,10.58760898,151.95,151.9,10.58760898]
[1749301436370,10.58760898,151.96,151.91,10.58760898]
[1749301437681,17.1684152,151.96,151.91,10.58760898]
[1749301437985,10.58760898,151.95,151.91,10.58760898]
[1749301438965,10.58760898,151.95,151.91,17.17043703]
[1749301443176,10.58760898,151.96,151.91,17.17043703]
[1749301448295,10.58760898,151.95,151.91,17.17043703]
[1749301449178,6.77921722,151.95,151.91,6.77921722]
[1749301449382,18.64964886,151.96,151.89,13.3627727]
[1749301449383,6.77921722,151.93,151.89,13.3627727]
[1749301449575,6.77921722,151.93,151.9,40.12]
[1749301450274,6.77921722,151.93,151.89,13.3627727]
[1749301450586,6.77921722,151.93,151.9,40.12]
[1749301451291,10.59546352,151.93,151.89,46.70355548]
[1749301452204,10.59546352,151.93,151.89,6.58355548]
[1749301452379,10.59546352,151.93,151.89,46.70355548]
[1749301453600,10.59546352,151.92,151.89,40.12]
[1749301454600,10.59546352,151.92,151.89,46.7035966]
[1749301454784,10.59546352,151.93,151.89,46.7035966]
[1749301455371,29.24511238,151.94,151.89,57.29906012]
[1749301455586,10.59546352,151.94,151.89,57.29906012]
[1749301462708,41.68359322,151.95,151.88,10.34]
[1749301463010,10.59546352,151.93,151.88,10.59546352]
[1749301464007,10.59546352,151.93,151.87,40.12]
[1749301464184,10.59546352,151.93,151.88,10.59546352]
[1749301465709,10.59546352,151.93,151.89,10.59546352]
[1749301467410,17.17749464,151.93,151.89,10.59546352]
[1749301467596,17.17749464,151.93,151.88,17.17960889]
[1749301468115,10.59546352,151.93,151.88,17.17960889]
[1749301468404,10.59546352,151.92,151.88,17.17960889]
[1749301469289,10.59546352,151.92,151.88,6.58414537]
[1749301469607,29.24511238,151.93,151.88,17.17960889]
[1749301469802,10.59546352,151.93,151.88,17.17960889]
[1749301470003,10.59546352,151.94,151.89,10.59546352]
[1749301470713,18.64964886,151.95,151.89,10.59546352]
[1749301470897,10.59546352,151.94,151.89,10.59546352]
[1749301471490,18.64964886,151.95,151.89,10.59546352]
[1749301471693,10.59546352,151.94,151.9,6.58327847]
[1749301472191,10.59546352,151.93,151.89,6.58356765]
[1749301472508,10.59546352,151.92,151.87,61.05546352]
[1749301472707,10.59546352,151.91,151.87,10.34]
[1749301472914,10.59546352,151.91,151.88,40.14]
[1749301473301,6.78324627,151.91,151.87,16.92447976]
[1749301473502,6.78324627,151.91,151.87,57.06447976]
[1749301474614,6.78324627,151.91,151.87,63.84772603]
[1749301475620,18.64964886,151.92,151.87,63.84772603]
[1749301475819,25.43289513,151.92,151.87,63.84772603]
[1749301476596,6.78324627,151.93,151.88,6.78324627]
[1749301477708,6.78324627,151.93,151.89,6.58371189]
[1749301479603,6.78324627,151.92,151.89,6.58371189]
[1749301480117,6.78324627,151.92,151.87,73.72469356]
[1749301480118,6.78324627,151.92,151.88,6.58414537]
[1749301483913,6.78324627,151.91,151.88,40.12]
[1749301484114,6.78324627,151.92,151.88,40.12]
[1749301485422,6.78324627,151.92,151.88,46.70381591]
[1749301486726,6.78324627,151.91,151.88,46.70381591]
[1749301487712,6.78324627,151.91,151.88,46.70412476]
[1749301491111,6.78324627,151.91,151.88,40.12]
[1749301491535,6.78324627,151.91,151.86,13.3680797]
[1749301491709,6.78324627,151.9,151.88,40.14]
[1749301492936,6.78324627,151.91,151.88,40.14]
[1749301493540,6.78324627,151.92,151.88,46.72386487]
[1749301493847,6.78324627,151.93,151.88,53.50711114]
[1749301494211,6.78324627,151.92,151.88,46.72386487]
[1749301496446,18.64964886,151.94,151.88,46.72386487]
[1749301496610,25.43289513,151.94,151.89,6.78324627]
[1749301496813,6.78324627,151.93,151.88,53.50711114]
[1749301499338,18.64964886,151.95,151.88,53.50711114]
[1749301499551,18.64964886,151.95,151.9,6.78324627]
[1749301499756,25.43289513,151.95,151.9,6.78324627]
[1749301499923,6.78324627,151.94,151.89,6.78324627]
[1749301500629,181.08038403,151.97,151.91,6.78324627]
[1749301500630,148.5,151.97,151.91,6.78324627]
[1749301500842,6.78324627,151.95,151.92,40.12]
[1749301501228,6.78324627,151.94,151.92,40.12]
[1749301501423,6.78324627,151.93,151.92,40.12]
[1749301502614,25.43289513,151.93,151.9,50.46]
[1749301502841,6.78324627,151.92,151.9,50.46]
[1749301503842,25.43289513,151.93,151.9,50.46]
[1749301505320,25.43289513,151.93,151.9,40.12]
[1749301506745,6.78324627,151.92,151.9,40.12]
[1749301508547,25.43289513,151.91,151.82,24.66462904]
[1749301508730,6.78324627,151.92,151.87,6.78324627]
[1749301508924,6.78324627,151.92,151.87,46.90324627]
[1749301509329,6.78324627,151.9,151.87,40.12]
[1749301510340,6.78324627,151.89,151.87,40.12]
[1749301510851,6.78324627,151.89,151.86,46.70499066]
[1749301511744,6.78324627,151.89,151.85,6.58544616]
[1749301511946,6.78324627,151.89,151.85,46.70544616]
[1749301513048,6.78324627,151.88,151.85,40.12]
[1749301513429,6.78324627,151.87,151.84,40.12]
[1749301514551,6.78324627,151.87,151.83,16.92622063]
[1749301514751,6.78324627,151.87,151.84,40.12]
[1749301515137,6.78324627,151.87,151.83,16.92622063]
[1749301515334,6.78324627,151.87,151.84,40.12]
[1749301515843,6.78324627,151.86,151.83,50.46]
[1749301516241,6.78324627,151.86,151.83,10.34]
[1749301516560,6.78324627,151.86,151.83,50.46]
[1749301517240,6.78324627,151.86,151.83,57.04619084]
[1749301517640,6.78324627,151.89,151.84,6.78324627]
[1749301518543,6.78324627,151.89,151.85,6.58544616]
[1749301518862,6.78324627,151.88,151.85,6.58544616]
[1749301519051,18.64964886,151.9,151.87,6.78324627]
[1749301519236,18.64964886,151.9,151.87,46.92324627]
[1749301519429,6.78324627,151.91,151.87,46.92324627]
[1749301519630,18.64964886,151.92,151.87,46.92324627]
[1749301519853,6.78324627,151.91,151.87,46.92324627]
[1749301520443,6.78324627,151.91,151.87,40.14]
[1749301520737,6.78324627,151.9,151.87,46.72440692]
[1749301521138,10.60090976,151.89,151.87,40.14]
[1749301521347,10.60090976,151.9,151.87,40.14]
[1749301521553,10.60090976,151.91,151.87,46.72446568]
[1749301522838,10.60090976,151.9,151.87,40.14]
[1749301523448,10.60090976,151.9,151.87,46.72454504]
[1749301524051,10.60090976,151.91,151.87,46.72454504]
[1749301524861,10.60090976,151.9,151.87,46.72454504]
[1749301525066,29.25055862,151.9,151.87,40.14]
[1749301525561,29.25055862,151.9,151.87,46.72445338]
[1749301526051,18.64964886,151.9,151.87,46.72445338]
[1749301526655,10.60090976,151.91,151.87,46.72445338]
[1749301527868,10.60090976,151.9,151.87,40.14]
[1749301528365,10.60090976,151.89,151.87,40.14]
[1749301528564,10.60090976,151.88,151.86,40.14]
[1749301528741,29.25055862,151.88,151.86,40.14]
[1749301529358,29.25055862,151.88,151.84,6.58586328]
[1749301529557,35.834713,151.88,151.85,40.14]
[1749301529754,29.25055862,151.87,151.83,16.92617217]
[1749301529981,29.25055862,151.87,151.84,40.14]
[1749301530485,10.60090976,151.86,151.84,40.14]
[1749301530782,29.25055862,151.87,151.84,46.7257279]
[1749301532155,18.64964886,151.87,151.84,46.7257279]
[1749301532358,6.58455684,151.88,151.82,6.5865701]
[1749301532554,6.58455684,151.88,151.82,46.7265701]
[1749301532778,10.60090976,151.86,151.82,46.7265701]
[1749301533361,10.60090976,151.86,151.82,6.5865701]
[1749301533560,10.60090976,151.85,151.83,40.14]
[1749301534291,10.60090976,151.85,151.82,40.14]
[1749301534666,10.60090976,151.86,151.82,46.72655642]
[1749301534872,10.60090976,151.87,151.82,57.32746618]
[1749301537792,10.60090976,151.86,151.83,40.14]
[1749301538088,10.60090976,151.86,151.83,46.7262955]
[1749301538461,18.64964886,151.87,151.83,46.7262955]
[1749301538462,29.25055862,151.87,151.83,46.7262955]
[1749301538870,10.60090976,151.86,151.83,40.14]
[1749301539073,10.60090976,151.85,151.82,40.14]
[1749301539274,10.60090976,151.84,151.82,40.14]
[1749301539771,29.25055862,151.84,151.8,6.58753897]
[1749301539971,29.25055862,151.84,151.78,10.34]
[1749301539972,10.60090976,151.83,151.78,10.34]
[1749301540178,18.64964886,151.83,151.79,50.74090976]
[1749301540475,10.60090976,151.84,151.8,10.60090976]
[1749301541089,18.64964886,151.86,151.8,10.60090976]
[1749301541277,10.60090976,151.85,151.8,10.60090976]
[1749301542091,10.60090976,151.84,151.81,6.58718134]
[1749301543499,10.60090976,151.85,151.81,6.58718134]
[1749301545402,10.60090976,151.85,151.81,17.1880911]
[1749301547203,6.78798622,151.85,151.81,6.78798622]
[1749301547517,25.43763508,151.86,151.81,6.78798622]
[1749301548192,6.78798622,151.84,151.8,6.58761528]
[1749301551306,10.60814985,151.84,151.8,6.58761528]
[1749301552085,25.23395967,151.88,151.81,10.60814985]
[1749301552379,10.60814985,151.85,151.81,10.60814985]
[1749301554008,10.60814985,151.85,151.82,6.58674746]
[1749301556394,10.60814985,151.85,151.81,6.58707329]
[1749301557306,10.60814985,151.84,151.81,6.58707329]
[1749301561117,10.60814985,151.85,151.81,6.58707329]
[1749301562514,29.25779871,151.86,151.81,17.19522314]
[1749301563108,10.60814985,151.84,151.8,6.58748648]
[1749301563692,10.60814985,151.83,151.79,72.72794926]
[1749301563894,6.58374453,151.89,151.82,36.60814985]
[1749301564195,18.64964886,151.89,151.83,57.39404784]
[1749301564590,12.14334985,151.9,151.83,57.39404784]
[1749301564809,12.14334985,151.9,151.83,73.85983194]
[1749301564810,1.5352,151.9,151.83,73.85983194]
[1749301565117,18.64964886,151.91,151.84,10.60814985]
[1749301565294,18.64964886,151.91,151.85,10.60814985]
[1749301565491,11.9276,151.94,151.86,10.60814985]
[1749301565695,18.64964886,151.93,151.87,50.80814985]
[1749301565913,29.25779871,151.93,151.87,50.80814985]
[1749301566201,29.25779871,151.93,151.88,6.58414537]
[1749301566390,10.60814985,151.92,151.88,6.58414537]
[1749301566593,29.25779871,151.93,151.88,6.58414537]
[1749301567823,29.25779871,151.93,151.88,17.19229522]
[1749301569022,18.64964886,151.93,151.89,10.60814985]
[1749301569425,18.64964886,151.93,151.9,6.58327847]
[1749301569613,37.96,151.97,151.9,17.19142832]
[1749301569811,18.64964886,151.94,151.91,40.18]
[1749301570118,29.25779871,151.94,151.91,40.18]
[1749301571306,10.60814985,151.93,151.91,40.18]
[1749301578113,10.60814985,151.92,151.91,40.18]
[1749301582215,35.8402105,151.92,151.91,40.18]
[1749301582611,35.8402105,151.92,151.89,40.14]
[1749301582812,10.60814985,151.91,151.89,40.14]
[1749301583711,10.60814985,151.9,151.89,40.14]
[1749301587043,17.19157311,151.9,151.88,40.12]
[1749301587219,10.60814985,151.89,151.88,40.12]
[1749301589239,10.60814985,151.89,151.85,32.58526754]
[1749301589569,10.60814985,151.88,151.86,40.12]
[1749301589837,10.60814985,151.87,151.84,6.5857348]
[1749301590043,10.60814985,151.87,151.85,40.12]
[1749301591356,10.60814985,151.87,151.83,16.92620786]
[1749301591534,10.60814985,151.87,151.84,40.12]
[1749301593749,17.19275358,151.87,151.83,10.34]
[1749301593938,10.60814985,151.86,151.83,10.34]
[1749301594142,10.60814985,151.86,151.84,40.14]
[1749301595167,10.60814985,151.85,151.79,6.1088]
[1749301595348,10.60814985,151.83,151.81,40.14]
[1749301596958,10.60814985,151.83,151.79,6.58797653]
[1749301597167,10.60814985,151.83,151.8,40.14]
[1749301598159,10.60814985,151.83,151.79,6.58797653]
[1749301598472,10.60814985,151.83,151.81,40.14]
[1749301600249,10.60814985,151.84,151.81,46.72697109]
[1749301600554,10.60814985,151.85,151.81,46.72697109]
[1749301602058,29.25779871,151.85,151.81,46.72697109]
[1749301602289,10.60814985,151.84,151.81,46.72697109]
[1749301607393,10.60814985,151.83,151.81,40.14]
[1749301609179,18.64964886,151.83,151.79,40.14]
[1749301609559,10.60814985,151.81,151.79,40.14]
[1749301613288,10.60814985,151.81,151.79,46.72803562]
[1749301613957,10.60814985,151.82,151.79,46.72803562]
[1749301614987,10.60814985,151.81,151.79,46.72803562]
[1749301616787,25.23436778,151.87,151.81,6.58718134]
[1749301616995,18.64964886,151.87,151.81,6.58718134]
[1749301617160,10.60814985,151.85,151.81,6.58718134]
[1749301617958,10.60814985,151.86,151.81,6.58718134]
[1749301618191,29.25779871,151.87,151.81,17.19533119]
[1749301618398,29.25779871,151.87,151.81,33.66328455]
[1749301619565,29.25779871,151.87,151.83,6.58631364]
[1749301619766,29.25779871,151.87,151.84,40.18]
[1749301620266,10.60814985,151.86,151.84,40.18]
[1749301621483,10.60814985,151.86,151.84,46.76580543]
[1749301623004,10.60814985,151.86,151.84,40.18]
[1749301623189,10.60814985,151.85,151.84,40.18]
[1749301624683,18.64964886,151.87,151.84,40.18]
[1749301624874,10.60814985,151.86,151.84,40.18]
[1749301626389,10.60814985,151.85,151.78,1.6172]
[1749301626703,18.64964886,151.83,151.81,40.14]
[1749301626898,10.60814985,151.82,151.8,40.2]
[1749301627119,10.60814985,151.81,151.8,40.2]
[1749301629607,17.19533119,151.81,151.77,10.36]
[1749301629775,10.60814985,151.81,151.79,40.2]
[1749301630176,17.19538993,151.81,151.79,40.2]
[1749301630690,10.60814985,151.8,151.79,40.2]
[1749301632493,10.60814985,151.8,151.77,10.36]
[1749301632689,10.60814985,151.8,151.78,40.18]
[1749301638810,10.60814985,151.8,151.77,16.94888982]
[1749301639015,10.60814985,151.8,151.78,40.16]
[1749301642135,10.60814985,151.79,151.75,26.0]
[1749301642318,10.60814985,151.77,151.76,40.16]
[1749301643218,6.79522095,151.77,151.76,40.16]
[1749301644109,6.79522095,151.78,151.76,40.16]
[1749301644506,6.79522095,151.78,151.76,46.74928211]
[1749301644704,6.79522095,151.79,151.76,46.74928211]
[1749301645298,10.61402186,151.79,151.76,46.74928211]
[1749301645518,10.61402186,151.8,151.76,46.74928211]
[1749301645998,18.64964886,151.81,151.76,46.74928211]
[1749301646328,29.26367072,151.81,151.76,57.36330397]
[1749301647622,10.61402186,151.8,151.76,46.74928211]
[1749301650825,10.61402186,151.79,151.76,46.74928211]
[1749301653330,10.61402186,151.77,151.75,40.16]
[1749301653634,10.61402186,151.78,151.75,40.16]
[1749301654019,10.61402186,151.77,151.75,40.16]
[1749301654716,10.61402186,151.77,151.74,6.58997619]
[1749301654717,10.61402186,151.76,151.73,40.16]
[1749301654922,10.61402186,151.75,151.73,40.16]
[1749301655827,10.61402186,151.74,151.7,0.14216157]
[1749301656028,10.61402186,151.74,151.72,40.16]
[1749301656222,10.61402186,151.73,151.71,40.16]
[1749301656422,10.61402186,151.73,151.7,46.75195781]
[1749301657115,10.61402186,151.71,151.68,40.16]
[1749301657718,10.61402186,151.71,151.68,46.75276407]
[1749301660014,10.61402186,151.73,151.68,57.36678593]
[1749301660417,10.61402186,151.73,151.69,10.61402186]
[1749301661848,10.61402186,151.73,151.7,6.59195781]
[1749301662646,10.61402186,151.74,151.7,17.20597967]
[1749301662946,10.61402186,151.75,151.71,10.61402186]
[1749301663113,10.61402186,151.75,151.72,40.2]
[1749301663933,10.61402186,151.75,151.72,46.79075902]
[1749301664521,1.5302,151.77,151.72,46.79075902]
[1749301664720,10.61402186,151.75,151.72,46.79075902]
[1749301665929,1.5302,151.77,151.72,57.40478088]
[1749301666243,10.61402186,151.76,151.72,57.40478088]
[1749301666537,10.61402186,151.75,151.72,46.79075902]
[1749301670542,10.61402186,151.74,151.72,46.79075902]
[1749301671042,10.61402186,151.74,151.72,40.2]
[1749301671548,10.61402186,151.74,151.72,46.79103562]
[1749301671952,10.61402186,151.75,151.72,46.79103562]
[1749301673223,10.61402186,151.74,151.72,46.79103562]
[1749301674747,10.61402186,151.74,151.71,6.5915233]
[1749301674952,10.61402186,151.74,151.72,40.2]
[1749301675857,10.61402186,151.74,151.73,40.2]
[1749301676836,26.0,151.75,151.67,50.81402186]
[1749301677040,10.61402186,151.74,151.69,10.61402186]
[1749301679356,10.61402186,151.74,151.7,6.59195781]
[1749301679684,10.61402186,151.74,151.71,40.22]
[1749301681542,10.61402186,151.73,151.71,40.22]
[1749301685558,10.61402186,151.73,151.71,46.811435]
[1749301686051,10.61402186,151.74,151.71,46.811435]
[1749301688254,10.61402186,151.73,151.71,46.811435]
[1749301689538,10.61402186,151.74,151.71,46.811435]
[1749301690157,10.61402186,151.75,151.71,46.811435]
[1749301691256,6.79706983,151.75,151.71,46.811435]
[1749301692057,18.64964886,151.77,151.71,46.811435]
[1749301692264,6.79706983,151.75,151.71,46.811435]
[1749301693268,10.61981786,151.75,151.71,46.811435]
[1749301693563,18.64964886,151.77,151.71,46.811435]
[1749301693763,10.61981786,151.75,151.71,46.811435]
[1749301694363,10.61981786,151.75,151.71,73.91006111]
[1749301694550,10.61981786,151.76,151.72,10.61981786]
[1749301695037,10.61981786,151.76,151.71,73.91006111]
[1749301695855,10.61981786,151.76,151.72,10.61981786]
[1749301697268,10.61981786,151.76,151.73,6.59065445]
[1749301697755,10.61981786,151.78,151.73,17.21047231]
[1749301697957,18.64964886,151.79,151.73,6.59065445]
[1749301698158,10.61981786,151.75,151.73,6.59065445]
[1749301699261,10.61981786,151.75,151.72,6.59108884]
[1749301699459,25.23810821,151.79,151.72,6.59108884]
[1749301699652,10.61981786,151.75,151.72,6.59108884]
[1749301701960,10.61981786,151.74,151.71,46.81137504]
[1749301702187,10.61981786,151.74,151.71,40.22]
[1749301702346,10.61981786,151.74,151.7,6.59164599]
[1749301702546,10.61981786,151.74,151.71,40.18]
[1749301703670,10.61981786,151.74,151.71,46.77135687]
[1749301707583,10.61981786,151.74,151.7,6.59195781]
[1749301707750,10.61981786,151.72,151.69,6.59227742]
[1749301707957,10.61981786,151.71,151.68,16.93265402]
[1749301708268,10.61981786,151.71,151.69,40.16]
[1749301708477,10.61981786,151.71,151.68,16.93265402]
[1749301708683,10.61981786,151.71,151.69,40.18]
[1749301710281,10.61981786,151.71,151.68,57.09265402]
[1749301711154,10.61981786,151.7,151.68,50.52]
[1749301711471,10.61981786,151.7,151.68,40.18]
[1749301711774,10.61981786,151.69,151.67,40.18]
[1749301714176,6.59154788,151.71,151.67,40.18]
[1749301714373,10.61981786,151.69,151.67,40.18]
[1749301715276,6.80186045,151.69,151.67,40.18]
[1749301715983,6.80186045,151.68,151.66,66.18]
[1749301717285,6.80186045,151.67,151.66,40.18]
[1749301718077,6.80186045,151.67,151.64,16.95438898]
[1749301718265,6.80186045,151.67,151.65,40.18]
[1749301718464,6.80186045,151.67,151.65,46.77408892]
[1749301718869,6.80186045,151.67,151.65,46.27408937]
[1749301721257,6.80186045,151.67,151.65,40.18]
[1749301721670,6.80186045,151.67,151.65,46.77412465]
[1749301722361,6.80186045,151.68,151.65,46.77412465]
[1749301722563,6.80186045,151.67,151.65,46.77412465]
[1749301722977,25.2407377,151.72,151.65,46.77412465]
[1749301723176,6.80186045,151.66,151.63,41.0980196]
[1749301723372,6.80186045,151.65,151.63,47.69298173]
[1749301723562,6.80186045,151.66,151.63,7.51298173]
[1749301723765,6.80186045,151.66,151.63,47.69298173]
[1749301724290,6.80186045,151.67,151.63,47.69298173]
[1749301724783,6.80186045,151.64,151.63,0.9180196]
[1749301730885,25.45150931,151.64,151.63,0.9180196]
[1749301731087,6.80186045,151.64,151.63,0.9180196]
[1749301731487,1.5384,151.66,151.63,0.9180196]
[1749301731702,6.80186045,151.65,151.63,7.51299403]
[1749301732682,18.64964886,151.68,151.63,7.51299403]
[1749301732893,6.80186045,151.66,151.63,7.51299403]
[1749301733193,6.80186045,151.66,151.64,40.2]
[1749301734504,6.80186045,151.65,151.64,46.79455404]
[1749301735212,10.63352044,151.65,151.64,46.79455404]
[1749301741806,1.5384,151.7,151.64,63.28096923]
[1749301742009,10.63352044,151.69,151.64,73.91448967]
[1749301743135,18.64964886,151.71,151.64,73.91448967]
[1749301743302,10.34,151.72,151.65,10.77568201]
[1749301743528,10.63352044,151.69,151.65,10.77568201]
[1749301743729,10.63352044,151.7,151.66,33.71145792]
[1749301743947,18.64964886,151.73,151.66,33.71145792]
[1749301744246,10.63352044,151.7,151.66,33.71145792]
[1749301744554,10.63352044,151.7,151.66,23.07793748]
[1749301745155,10.63352044,151.69,151.66,23.07793748]
[1749301746026,10.63352044,151.69,151.66,6.59369642]
[1749301746830,10.63352044,151.67,151.65,6.59396089]